[Event "*** Titled Tuesday Blitz"]
[Site "Chess.com"]
[Date "2020.11.24"]
[Round "1"]
[White "yobdc"]
[Black "Salem-AR"]
[Result "0-1"]
[WhiteElo "2448"]
[BlackElo "2910"]
[TimeControl "180+1"]
[EndTime "10:22:55 PST"]
[Termination "Salem-AR won on time"]

1. d4 {[%clk 0:03:00.9]} 1... Nf6 {[%clk 0:02:58.7]} 2. Nf3 {[%clk 0:03:00.8]}
2... e6 {[%clk 0:02:58.2]} 3. e3 {[%clk 0:03:00.4]} 3... c5 {[%clk 0:02:57]} 4.
Bd3 {[%clk 0:03:00.6]} 4... b6 {[%clk 0:02:51.8]} 5. O-O {[%clk 0:03:00.3]} 5...
Bb7 {[%clk 0:02:52.1]} 6. b3 {[%clk 0:03:00.7]} 6... Nc6 {[%clk 0:02:47.2]} 7.
Bb2 {[%clk 0:03:00.5]} 7... cxd4 {[%clk 0:02:47.3]} 8. exd4 {[%clk 0:03:00]}
8... d5 {[%clk 0:02:44.8]} 9. Nbd2 {[%clk 0:02:58.4]} 9... Be7 {[%clk
0:02:39.2]} 10. Ne5 {[%clk 0:02:58.1]} 10... O-O {[%clk 0:02:38.6]} 11. Re1
{[%clk 0:02:51.6]} 11... Rc8 {[%clk 0:02:37.6]} 12. a3 {[%clk 0:02:51.6]} 12...
Rc7 {[%clk 0:02:37.8]} 13. Qf3 {[%clk 0:02:50.6]} 13... Qa8 {[%clk 0:02:33]} 14.
Qh3 {[%clk 0:02:37.6]} 14... g6 {[%clk 0:02:18.8]} 15. Re3 {[%clk 0:02:29.7]}
15... Nxe5 {[%clk 0:02:16.9]} 16. dxe5 {[%clk 0:02:25.6]} 16... Ne4 {[%clk
0:01:48.2]} 17. Bxe4 {[%clk 0:02:14.8]} 17... dxe4 {[%clk 0:01:49.1]} 18. Qh6
{[%clk 0:02:12.1]} 18... f5 {[%clk 0:01:18.4]} 19. exf6 {[%clk 0:02:02.7]} 19...
Bxf6 {[%clk 0:01:18]} 20. Bxf6 {[%clk 0:02:01.6]} 20... Rxf6 {[%clk 0:01:18.9]}
21. c4 {[%clk 0:01:36.1]} 21... Rd7 {[%clk 0:01:08.3]} 22. Nf1 {[%clk 0:01:34]}
22... Rdf7 {[%clk 0:01:08.5]} 23. Ra2 {[%clk 0:01:32.5]} 23... Qd8 {[%clk
0:01:03.7]} 24. Rd2 {[%clk 0:01:28.5]} 24... Qe7 {[%clk 0:01:02.9]} 25. b4
{[%clk 0:01:01.7]} 25... Qc7 {[%clk 0:01:02.7]} 26. Rc2 {[%clk 0:00:53.4]} 26...
Qe5 {[%clk 0:00:50.9]} 27. Qh4 {[%clk 0:00:46]} 27... g5 {[%clk 0:00:45.6]} 28.
Qg3 {[%clk 0:00:46.1]} 28... Rf4 {[%clk 0:00:40.4]} 29. c5 {[%clk 0:00:44.8]}
29... Bd5 {[%clk 0:00:34.1]} 30. h4 {[%clk 0:00:41.9]} 30... Rg7 {[%clk
0:00:33.1]} 31. c6 {[%clk 0:00:28.4]} 31... gxh4 {[%clk 0:00:27.4]} 32. Qh2
{[%clk 0:00:27.2]} 32... Rc7 {[%clk 0:00:13.5]} 33. b5 {[%clk 0:00:27.2]} 33...
Qg5 {[%clk 0:00:11.1]} 34. Nd2 {[%clk 0:00:15.5]} 34... h6 {[%clk 0:00:08.4]}
35. a4 {[%clk 0:00:13.2]} 35... Rff7 {[%clk 0:00:05]} 36. Rcc3 {[%clk
0:00:09.6]} 36... Qf5 {[%clk 0:00:04.9]} 37. Re2 {[%clk 0:00:07.4]} 37... e3
{[%clk 0:00:05.4]} 38. Rcxe3 {[%clk 0:00:07.3]} 38... Rg7 {[%clk 0:00:06.1]} 39.
f3 {[%clk 0:00:06.6]} 39... h3 {[%clk 0:00:05.7]} 40. g4 {[%clk 0:00:05.3]}
40... h5 {[%clk 0:00:05.9]} 41. Qg3 {[%clk 0:00:02.6]} 41... hxg4 {[%clk
0:00:06.1]} 42. Kh2 {[%clk 0:00:02.7]} 42... gxf3 {[%clk 0:00:05.2]} 43. Qd6
{[%clk 0:00:01.5]} 43... fxe2 {[%clk 0:00:04.8]} 44. Qd8+ {[%clk 0:00:01.7]}
44... Qf8 {[%clk 0:00:05]} 0-1

[Event "*** Titled Tuesday Blitz"]
[Site "Chess.com"]
[Date "2020.11.24"]
[Round "1"]
[White "XDPS"]
[Black "Nara_Kh"]
[Result "1/2-1/2"]
[WhiteElo "2712"]
[BlackElo "2385"]
[TimeControl "180+1"]
[EndTime "10:22:55 PST"]
[Termination "Game drawn by repetition"]

1. e4 {[%clk 0:02:49.1]} 1... c5 {[%clk 0:02:59.2]} 2. Nf3 {[%clk 0:02:49.2]}
2... d6 {[%clk 0:02:59.4]} 3. d4 {[%clk 0:02:49.6]} 3... Nf6 {[%clk 0:02:59.3]}
4. Nc3 {[%clk 0:02:49.6]} 4... cxd4 {[%clk 0:02:59.9]} 5. Nxd4 {[%clk
0:02:50.5]} 5... a6 {[%clk 0:02:59.9]} 6. Be2 {[%clk 0:02:50.7]} 6... e5 {[%clk
0:02:59.8]} 7. Nf3 {[%clk 0:02:50.3]} 7... h6 {[%clk 0:02:59.7]} 8. Nd2 {[%clk
0:02:48.9]} 8... Be7 {[%clk 0:02:54.9]} 9. Nc4 {[%clk 0:02:47]} 9... Be6 {[%clk
0:02:53.9]} 10. Ne3 {[%clk 0:02:44.2]} 10... O-O {[%clk 0:02:53.2]} 11. O-O
{[%clk 0:02:43.6]} 11... Nc6 {[%clk 0:02:52.9]} 12. f3 {[%clk 0:02:37.8]} 12...
b5 {[%clk 0:02:52.1]} 13. a4 {[%clk 0:02:33.7]} 13... Nd4 {[%clk 0:02:45.8]} 14.
axb5 {[%clk 0:02:29]} 14... axb5 {[%clk 0:02:45.7]} 15. Rxa8 {[%clk 0:02:28.5]}
15... Qxa8 {[%clk 0:02:45.3]} 16. Nxb5 {[%clk 0:02:24.2]} 16... Nxe2+ {[%clk
0:02:15.2]} 17. Qxe2 {[%clk 0:02:25.1]} 17... Qa6 {[%clk 0:02:09.2]} 18. c4
{[%clk 0:02:20.8]} 18... Rc8 {[%clk 0:02:04]} 19. b3 {[%clk 0:02:19.4]} 19...
Bd8 {[%clk 0:01:55.5]} 20. Rd1 {[%clk 0:02:17.4]} 20... Rc6 {[%clk 0:01:54.7]}
21. Nd5 {[%clk 0:02:10.5]} 21... Bxd5 {[%clk 0:01:47.9]} 22. exd5 {[%clk
0:02:10.6]} 22... Rc8 {[%clk 0:01:41.7]} 23. Be3 {[%clk 0:02:10.3]} 23... Bb6
{[%clk 0:01:30.6]} 24. Bxb6 {[%clk 0:01:52]} 24... Qxb6+ {[%clk 0:01:31.4]} 25.
Qf2 {[%clk 0:01:48.3]} 25... Qa6 {[%clk 0:01:18.8]} 26. Qa7 {[%clk 0:01:42.9]}
26... Ra8 {[%clk 0:01:18.7]} 27. Qxa6 {[%clk 0:01:35.7]} 27... Rxa6 {[%clk
0:01:19.6]} 28. h3 {[%clk 0:01:22.6]} 28... Kf8 {[%clk 0:01:19]} 29. b4 {[%clk
0:01:05.2]} 29... Nd7 {[%clk 0:01:18.2]} 30. Rc1 {[%clk 0:01:01.8]} 30... Ke7
{[%clk 0:00:35.6]} 31. Nc3 {[%clk 0:00:29.8]} 31... Ra3 {[%clk 0:00:27.7]} 32.
Kh2 {[%clk 0:00:20.3]} 32... Rb3 {[%clk 0:00:27.6]} 33. b5 {[%clk 0:00:13.9]}
33... f5 {[%clk 0:00:27.6]} 34. Ne2 {[%clk 0:00:05.7]} 34... Rb4 {[%clk
0:00:25.3]} 35. f4 {[%clk 0:00:04.3]} 35... exf4 {[%clk 0:00:21.3]} 36. Nd4
{[%clk 0:00:04.2]} 36... Ne5 {[%clk 0:00:18.2]} 37. Nc6+ {[%clk 0:00:03.9]}
37... Nxc6 {[%clk 0:00:18.2]} 38. dxc6 {[%clk 0:00:04.8]} 38... Kd8 {[%clk
0:00:18.6]} 39. Rd1 {[%clk 0:00:05.2]} 39... Kc7 {[%clk 0:00:19.1]} 40. c5
{[%clk 0:00:05.6]} 40... dxc5 {[%clk 0:00:16.8]} 41. Rd7+ {[%clk 0:00:06.1]}
41... Kc8 {[%clk 0:00:17]} 42. Rb7 {[%clk 0:00:02.6]} 42... c4 {[%clk
0:00:13.6]} 43. b6 {[%clk 0:00:02.5]} 43... c3 {[%clk 0:00:13.9]} 44. Rc7+
{[%clk 0:00:02.3]} 44... Kb8 {[%clk 0:00:13.6]} 45. Rb7+ {[%clk 0:00:02.8]}
45... Kc8 {[%clk 0:00:13.8]} 46. Rc7+ {[%clk 0:00:03.2]} 46... Kb8 {[%clk
0:00:14.2]} 47. Rb7+ {[%clk 0:00:03.4]} 47... Kc8 {[%clk 0:00:14.6]} 1/2-1/2

[Event "*** Titled Tuesday Blitz"]
[Site "Chess.com"]
[Date "2020.11.24"]
[Round "1"]
[White "r31415"]
[Black "mishanick"]
[Result "0-1"]
[WhiteElo "2463"]
[BlackElo "2993"]
[TimeControl "180+1"]
[EndTime "10:22:56 PST"]
[Termination "mishanick won by resignation"]

1. e4 {[%clk 0:03:00.9]} 1... c5 {[%clk 0:02:59.3]} 2. Nf3 {[%clk 0:03:00.7]}
2... d6 {[%clk 0:02:59.8]} 3. d4 {[%clk 0:03:01.2]} 3... cxd4 {[%clk 0:03:00.1]}
4. Nxd4 {[%clk 0:03:02.1]} 4... Nf6 {[%clk 0:02:59.9]} 5. Nc3 {[%clk 0:03:02.6]}
5... a6 {[%clk 0:03:00.4]} 6. h3 {[%clk 0:03:03.3]} 6... b5 {[%clk 0:02:57.4]}
7. g4 {[%clk 0:03:02.6]} 7... Bb7 {[%clk 0:02:57.8]} 8. Bg2 {[%clk 0:03:02.3]}
8... Nc6 {[%clk 0:02:58.1]} 9. Nde2 {[%clk 0:02:59]} 9... e6 {[%clk 0:02:56]}
10. g5 {[%clk 0:02:36.1]} 10... Nd7 {[%clk 0:02:56]} 11. Ng3 {[%clk 0:02:36.5]}
11... Be7 {[%clk 0:02:52.2]} 12. h4 {[%clk 0:02:35.1]} 12... Nde5 {[%clk
0:02:44.5]} 13. f4 {[%clk 0:02:27.7]} 13... Nc4 {[%clk 0:02:44.8]} 14. b3 {[%clk
0:02:27.4]} 14... Qa5 {[%clk 0:02:44.9]} 15. Ne2 {[%clk 0:02:19.6]} 15... b4
{[%clk 0:02:38.9]} 16. Na4 {[%clk 0:02:11.2]} 16... Nb6 {[%clk 0:02:38.9]} 17.
Nb2 {[%clk 0:02:03.6]} 17... h6 {[%clk 0:02:24.8]} 18. Be3 {[%clk 0:02:02.5]}
18... hxg5 {[%clk 0:02:24.5]} 19. hxg5 {[%clk 0:02:03.1]} 19... Rxh1+ {[%clk
0:02:24.4]} 20. Bxh1 {[%clk 0:02:04]} 20... d5 {[%clk 0:02:17.5]} 21. exd5
{[%clk 0:01:50.2]} 21... Nxd5 {[%clk 0:02:16.8]} 22. Nc4 {[%clk 0:01:47.6]}
22... Qb5 {[%clk 0:02:02.1]} 23. Bxd5 {[%clk 0:01:36.6]} 23... exd5 {[%clk
0:02:01]} 24. Nb6 {[%clk 0:01:22.5]} 24... Rd8 {[%clk 0:02:00.7]} 25. Na4 {[%clk
0:01:09.3]} 25... d4 {[%clk 0:01:58.9]} 26. Bf2 {[%clk 0:01:08.8]} 26... Bc8
{[%clk 0:01:25.1]} 27. Qd3 {[%clk 0:01:06.6]} 27... Bf5 {[%clk 0:01:25.1]} 28.
Qxb5 {[%clk 0:00:56.7]} 28... axb5 {[%clk 0:01:26]} 29. Nb2 {[%clk 0:00:57]}
29... Bxc2 {[%clk 0:01:25.4]} 30. Rc1 {[%clk 0:00:56.6]} 30... Be4 {[%clk
0:01:23.2]} 31. Kd2 {[%clk 0:00:48.7]} 31... f5 {[%clk 0:01:17.8]} 32. Nd3
{[%clk 0:00:44.7]} 32... Kd7 {[%clk 0:01:06.1]} 33. Nc5+ {[%clk 0:00:42.6]}
33... Bxc5 {[%clk 0:00:52]} 34. Rxc5 {[%clk 0:00:43.5]} 34... Rh8 {[%clk
0:00:51.9]} 35. Bxd4 {[%clk 0:00:34]} 35... Rh2 {[%clk 0:00:49]} 36. Ke3 {[%clk
0:00:23.5]} 36... Kd6 {[%clk 0:00:31.1]} 37. Rc1 {[%clk 0:00:10.9]} 37... Rh3+
{[%clk 0:00:26.8]} 38. Kf2 {[%clk 0:00:10]} 38... Rh2+ {[%clk 0:00:26.5]} 39.
Ke3 {[%clk 0:00:08.6]} 39... Rxe2+ {[%clk 0:00:27]} 40. Kxe2 {[%clk 0:00:08.8]}
40... Nxd4+ {[%clk 0:00:27.6]} 41. Ke3 {[%clk 0:00:09.4]} 41... Ne6 {[%clk
0:00:27.7]} 42. Rc8 {[%clk 0:00:08.2]} 42... Nc7 {[%clk 0:00:27.5]} 43. Rg8
{[%clk 0:00:07.6]} 43... Ne6 {[%clk 0:00:24.4]} 44. Rb8 {[%clk 0:00:06.3]} 44...
Kc6 {[%clk 0:00:23.1]} 45. Rc8+ {[%clk 0:00:06.2]} 45... Kd7 {[%clk 0:00:23]}
46. Rb8 {[%clk 0:00:06.2]} 46... Bc6 {[%clk 0:00:23.2]} 47. Rg8 {[%clk
0:00:05.5]} 47... Ke7 {[%clk 0:00:22.3]} 48. Rb8 {[%clk 0:00:06]} 48... Kd6
{[%clk 0:00:21.6]} 49. Rg8 {[%clk 0:00:05.9]} 49... Kc7 {[%clk 0:00:20.4]} 50.
Rh8 {[%clk 0:00:05.1]} 50... Kd6 {[%clk 0:00:17.9]} 51. Rg8 {[%clk 0:00:05.5]}
51... Be4 {[%clk 0:00:17.9]} 52. Rb8 {[%clk 0:00:05.2]} 52... Nc7 {[%clk
0:00:18]} 53. Rg8 {[%clk 0:00:04.7]} 53... Nd5+ {[%clk 0:00:18.5]} 54. Kd4
{[%clk 0:00:03.7]} 54... Nxf4 {[%clk 0:00:19.1]} 55. Rxg7 {[%clk 0:00:03.9]}
55... Ne6+ {[%clk 0:00:19.6]} 0-1

[Event "*** Titled Tuesday Blitz"]
[Site "Chess.com"]
[Date "2020.11.24"]
[Round "1"]
[White "Shuvalov"]
[Black "Azerichess"]
[Result "0-1"]
[WhiteElo "2457"]
[BlackElo "2960"]
[TimeControl "180+1"]
[EndTime "10:22:56 PST"]
[Termination "Azerichess won by checkmate"]

1. Nf3 {[%clk 0:02:58.5]} 1... c5 {[%clk 0:02:55.5]} 2. c3 {[%clk 0:02:53.7]}
2... Nf6 {[%clk 0:02:51.6]} 3. d4 {[%clk 0:02:53.7]} 3... e6 {[%clk 0:02:51.1]}
4. Bf4 {[%clk 0:02:48.7]} 4... b6 {[%clk 0:02:47.6]} 5. e3 {[%clk 0:02:47.9]}
5... Bb7 {[%clk 0:02:47.9]} 6. h3 {[%clk 0:02:45.7]} 6... Be7 {[%clk 0:02:45.9]}
7. Nbd2 {[%clk 0:02:44.5]} 7... O-O {[%clk 0:02:45.6]} 8. Be2 {[%clk 0:02:39.6]}
8... d5 {[%clk 0:02:36]} 9. O-O {[%clk 0:02:36.3]} 9... Nc6 {[%clk 0:02:36.2]}
10. a4 {[%clk 0:02:26]} 10... a6 {[%clk 0:02:30.4]} 11. Re1 {[%clk 0:02:16.6]}
11... c4 {[%clk 0:02:16.5]} 12. Ne5 {[%clk 0:02:13.3]} 12... Nxe5 {[%clk
0:02:15.6]} 13. Bxe5 {[%clk 0:02:13.1]} 13... Nd7 {[%clk 0:02:15.7]} 14. Bg3
{[%clk 0:02:11.3]} 14... b5 {[%clk 0:02:16.2]} 15. axb5 {[%clk 0:01:48.4]} 15...
axb5 {[%clk 0:02:17.1]} 16. b4 {[%clk 0:01:30.5]} 16... Nb6 {[%clk 0:02:12.4]}
17. Bf3 {[%clk 0:01:26.7]} 17... f5 {[%clk 0:02:11.5]} 18. Qc2 {[%clk
0:01:22.7]} 18... Ra4 {[%clk 0:02:04.1]} 19. Qb2 {[%clk 0:01:18.9]} 19... Qd7
{[%clk 0:01:49.2]} 20. Rec1 {[%clk 0:01:18.4]} 20... Rfa8 {[%clk 0:01:47.9]} 21.
Bd1 {[%clk 0:01:17.8]} 21... R4a6 {[%clk 0:01:44.5]} 22. Nf3 {[%clk 0:01:12.9]}
22... Qc8 {[%clk 0:01:44.4]} 23. Ne5 {[%clk 0:01:10.1]} 23... Bc6 {[%clk
0:01:36.4]} 24. Rxa6 {[%clk 0:00:40.4]} 24... Rxa6 {[%clk 0:01:35.5]} 25. Ra1
{[%clk 0:00:40.9]} 25... Be8 {[%clk 0:01:35.1]} 26. f3 {[%clk 0:00:20.4]} 26...
Qa8 {[%clk 0:01:31.2]} 27. Rxa6 {[%clk 0:00:18.1]} 27... Qxa6 {[%clk 0:01:32.1]}
28. Bc2 {[%clk 0:00:16]} 28... Qa8 {[%clk 0:01:28.3]} 29. e4 {[%clk 0:00:15.3]}
29... dxe4 {[%clk 0:01:17.1]} 30. fxe4 {[%clk 0:00:16.2]} 30... fxe4 {[%clk
0:01:17.9]} 31. Qb1 {[%clk 0:00:16.4]} 31... Nd5 {[%clk 0:01:18.4]} 32. Bxe4
{[%clk 0:00:15.1]} 32... Nxc3 {[%clk 0:01:18.8]} 33. Bxh7+ {[%clk 0:00:14.2]}
33... Kh8 {[%clk 0:01:18.9]} 34. Qe1 {[%clk 0:00:13]} 34... Kxh7 {[%clk
0:01:09.6]} 35. Qxc3 {[%clk 0:00:12.6]} 35... Qa2 {[%clk 0:01:09.3]} 36. Kh2
{[%clk 0:00:12.1]} 36... Qb1 {[%clk 0:01:09.2]} 37. Qf3 {[%clk 0:00:11.5]} 37...
Qf5 {[%clk 0:01:03.4]} 38. Qe3 {[%clk 0:00:10.9]} 38... Bxb4 {[%clk 0:01:01.1]}
39. Nf3 {[%clk 0:00:10.9]} 39... Kg8 {[%clk 0:00:55.3]} 40. Ng5 {[%clk
0:00:10.3]} 40... Bd7 {[%clk 0:00:45.6]} 41. Be5 {[%clk 0:00:09.8]} 41... Be7
{[%clk 0:00:45.6]} 42. Nf3 {[%clk 0:00:08.5]} 42... b4 {[%clk 0:00:44.7]} 43.
Qe2 {[%clk 0:00:08.4]} 43... c3 {[%clk 0:00:42.8]} 44. Qc4 {[%clk 0:00:08.1]}
44... c2 {[%clk 0:00:42.5]} 45. Qc7 {[%clk 0:00:07.7]} 45... Bf8 {[%clk
0:00:37.1]} 46. Nh4 {[%clk 0:00:05.6]} 46... Qe4 {[%clk 0:00:31.6]} 47. Qxd7
{[%clk 0:00:05.6]} 47... c1=Q {[%clk 0:00:28.6]} 48. Qxe6+ {[%clk 0:00:05.8]}
48... Kh7 {[%clk 0:00:28.8]} 49. Qf7 {[%clk 0:00:05]} 49... Qxh4 {[%clk
0:00:23.5]} 50. Qxf8 {[%clk 0:00:04.8]} 50... Qcg5 {[%clk 0:00:20.8]} 51. Bg3
{[%clk 0:00:02.6]} 51... Qhxg3+ {[%clk 0:00:20.3]} 52. Kh1 {[%clk 0:00:02]}
52... Qxg2# {[%clk 0:00:19.4]} 0-1

[Event "*** Titled Tuesday Blitz"]
[Site "Chess.com"]
[Date "2020.11.24"]
[Round "1"]
[White "GAusal"]
[Black "yourstrulyme"]
[Result "0-1"]
[WhiteElo "2003"]
[BlackElo "2479"]
[TimeControl "180+1"]
[EndTime "10:22:56 PST"]
[Termination "yourstrulyme won on time"]

1. d4 {[%clk 0:02:59.4]} 1... Nf6 {[%clk 0:02:59.5]} 2. Bf4 {[%clk 0:02:56]}
2... e6 {[%clk 0:02:58.8]} 3. e3 {[%clk 0:02:54.9]} 3... d5 {[%clk 0:02:58.7]}
4. Nf3 {[%clk 0:02:55.3]} 4... Bd6 {[%clk 0:02:58.1]} 5. Ne5 {[%clk 0:02:54.1]}
5... O-O {[%clk 0:02:40.2]} 6. c3 {[%clk 0:02:29.5]} 6... c5 {[%clk 0:02:38.5]}
7. Nd2 {[%clk 0:02:26]} 7... Qc7 {[%clk 0:02:35.9]} 8. Bd3 {[%clk 0:02:23]} 8...
Nbd7 {[%clk 0:02:34.2]} 9. Ndf3 {[%clk 0:02:19]} 9... b6 {[%clk 0:02:27.7]} 10.
O-O {[%clk 0:02:15.1]} 10... Bb7 {[%clk 0:02:27.2]} 11. a4 {[%clk 0:02:11.8]}
11... a6 {[%clk 0:02:24.9]} 12. Nxd7 {[%clk 0:02:07.1]} 12... Nxd7 {[%clk
0:02:11.6]} 13. Bxd6 {[%clk 0:02:06.2]} 13... Qxd6 {[%clk 0:02:12.5]} 14. Qc2
{[%clk 0:01:59.8]} 14... g6 {[%clk 0:02:07.4]} 15. a5 {[%clk 0:01:55.7]} 15...
b5 {[%clk 0:01:57.9]} 16. b4 {[%clk 0:01:51.7]} 16... cxb4 {[%clk 0:01:54.1]}
17. cxb4 {[%clk 0:01:46.2]} 17... Rac8 {[%clk 0:01:52.2]} 18. Qb2 {[%clk
0:01:42.8]} 18... Rc7 {[%clk 0:01:44.8]} 19. Rac1 {[%clk 0:01:41.9]} 19... Rfc8
{[%clk 0:01:44.6]} 20. Rxc7 {[%clk 0:01:37.5]} 20... Qxc7 {[%clk 0:01:45.5]} 21.
Rb1 {[%clk 0:01:31.7]} 21... Qc3 {[%clk 0:01:43.4]} 22. Qxc3 {[%clk 0:01:27.5]}
22... Rxc3 {[%clk 0:01:44.3]} 23. Ne1 {[%clk 0:01:23.4]} 23... Nb8 {[%clk
0:01:42.2]} 24. Kf1 {[%clk 0:01:18.8]} 24... Nc6 {[%clk 0:01:41.3]} 25. Ke2
{[%clk 0:01:19.1]} 25... Kf8 {[%clk 0:01:35.4]} 26. Kd2 {[%clk 0:01:16.2]} 26...
Ra3 {[%clk 0:01:32.8]} 27. Nc2 {[%clk 0:01:12]} 27... Ra4 {[%clk 0:01:05.4]} 28.
Kc3 {[%clk 0:01:03.4]} 28... Ke7 {[%clk 0:01:04.8]} 29. Kb3 {[%clk 0:01:03.1]}
29... f5 {[%clk 0:01:02.7]} 30. h4 {[%clk 0:00:53.8]} 30... Kd6 {[%clk
0:01:01.8]} 31. Rh1 {[%clk 0:00:49.7]} 31... h5 {[%clk 0:01:01.4]} 32. f3 {[%clk
0:00:49.1]} 32... Bc8 {[%clk 0:00:54.8]} 33. Rg1 {[%clk 0:00:48.4]} 33... e5
{[%clk 0:00:53.9]} 34. f4 {[%clk 0:00:38.8]} 34... e4 {[%clk 0:00:47.6]} 35. Be2
{[%clk 0:00:38.2]} 35... Be6 {[%clk 0:00:44.1]} 36. g3 {[%clk 0:00:36.2]} 36...
Nd8 {[%clk 0:00:41.6]} 37. Ra1 {[%clk 0:00:34.6]} 37... Bd7 {[%clk 0:00:38]} 38.
Rxa4 {[%clk 0:00:33.3]} 38... bxa4+ {[%clk 0:00:37.9]} 39. Ka3 {[%clk
0:00:34.2]} 39... Bb5 {[%clk 0:00:37.9]} 40. Bxb5 {[%clk 0:00:28.8]} 40... axb5
{[%clk 0:00:38.7]} 41. Ne1 {[%clk 0:00:25.1]} 41... Kc6 {[%clk 0:00:37.8]} 42.
Nc2 {[%clk 0:00:24.5]} 42... Nb7 {[%clk 0:00:37.7]} 43. Kb2 {[%clk 0:00:22.3]}
43... Nd6 {[%clk 0:00:37.3]} 44. Na3 {[%clk 0:00:22]} 44... Kb7 {[%clk
0:00:30.7]} 45. Kc3 {[%clk 0:00:20]} 45... Ka6 {[%clk 0:00:30.1]} 46. Nc2 {[%clk
0:00:19.5]} 46... Nc4 {[%clk 0:00:28.9]} 47. Ne1 {[%clk 0:00:08.4]} 47... Nxe3
{[%clk 0:00:28.6]} 48. Nc2 {[%clk 0:00:07.3]} 48... Nxc2 {[%clk 0:00:24.9]} 49.
Kxc2 {[%clk 0:00:06.8]} 49... Kb7 {[%clk 0:00:23.4]} 50. Kc3 {[%clk 0:00:06]}
50... Kc6 {[%clk 0:00:22.1]} 51. Kd2 {[%clk 0:00:05.1]} 51... a3 {[%clk
0:00:22]} 52. Kc3 {[%clk 0:00:04.9]} 52... e3 {[%clk 0:00:21.4]} 0-1

[Event "*** Titled Tuesday Blitz"]
[Site "Chess.com"]
[Date "2020.11.24"]
[Round "1"]
[White "Barmen_EV"]
[Black "Rainmond"]
[Result "0-1"]
[WhiteElo "2400"]
[BlackElo "2769"]
[TimeControl "180+1"]
[EndTime "10:22:58 PST"]
[Termination "Rainmond won by checkmate"]

1. d4 {[%clk 0:02:57.5]} 1... g6 {[%clk 0:02:57.8]} 2. c4 {[%clk 0:02:58.4]}
2... Bg7 {[%clk 0:02:56.4]} 3. e4 {[%clk 0:02:58.8]} 3... e6 {[%clk 0:02:55.7]}
4. Nc3 {[%clk 0:02:57.9]} 4... Ne7 {[%clk 0:02:44.8]} 5. f4 {[%clk 0:02:53.1]}
5... d5 {[%clk 0:02:44]} 6. cxd5 {[%clk 0:02:51.9]} 6... exd5 {[%clk 0:02:44.9]}
7. e5 {[%clk 0:02:52.8]} 7... O-O {[%clk 0:02:44.3]} 8. Nf3 {[%clk 0:02:53.7]}
8... f6 {[%clk 0:02:44.9]} 9. h4 {[%clk 0:02:51.8]} 9... Bg4 {[%clk 0:02:42.7]}
10. Be2 {[%clk 0:02:50.5]} 10... c5 {[%clk 0:02:36.3]} 11. dxc5 {[%clk 0:02:46]}
11... Qa5 {[%clk 0:02:34.9]} 12. Be3 {[%clk 0:02:41.4]} 12... Nbc6 {[%clk
0:02:30.2]} 13. Nd4 {[%clk 0:02:36.2]} 13... Bxe2 {[%clk 0:02:28.5]} 14. Qxe2
{[%clk 0:02:32.6]} 14... fxe5 {[%clk 0:02:26.4]} 15. Nxc6 {[%clk 0:02:20.2]}
15... Nxc6 {[%clk 0:02:21.5]} 16. fxe5 {[%clk 0:02:12.2]} 16... Bxe5 {[%clk
0:02:00.1]} 17. O-O-O {[%clk 0:02:09.5]} 17... Bxc3 {[%clk 0:01:58.1]} 18. bxc3
{[%clk 0:02:07.5]} 18... Qxc3+ {[%clk 0:01:40.1]} 19. Kb1 {[%clk 0:02:07.1]}
19... Rae8 {[%clk 0:01:35.8]} 20. Rhe1 {[%clk 0:02:00.5]} 20... d4 {[%clk
0:01:34.5]} 21. Bd2 {[%clk 0:01:53]} 21... Rxe2 {[%clk 0:01:16.2]} 22. Bxc3
{[%clk 0:01:51.3]} 22... Rxe1 {[%clk 0:01:14.1]} 23. Bxe1 {[%clk 0:01:52.2]}
23... Rf1 {[%clk 0:01:13.8]} 24. Kc2 {[%clk 0:01:47.5]} 24... Rg1 {[%clk
0:01:13]} 25. g3 {[%clk 0:01:46.3]} 25... Kf7 {[%clk 0:01:12.7]} 26. Kd3 {[%clk
0:01:43.6]} 26... Ke6 {[%clk 0:01:10]} 27. Ke4 {[%clk 0:01:40.6]} 27... h5
{[%clk 0:01:03.6]} 28. Rc1 {[%clk 0:01:35.5]} 28... Ne5 {[%clk 0:00:55.8]} 29.
Rb1 {[%clk 0:01:30.6]} 29... d3 {[%clk 0:00:53.5]} 30. Ke3 {[%clk 0:01:28.2]}
30... Rg2 {[%clk 0:00:43.6]} 31. Bc3 {[%clk 0:01:17.8]} 31... Rxg3+ {[%clk
0:00:40.5]} 32. Kf4 {[%clk 0:00:51.5]} 32... Rg4+ {[%clk 0:00:38.5]} 33. Ke3
{[%clk 0:00:50.8]} 33... Nc6 {[%clk 0:00:23]} 34. Rxb7 {[%clk 0:00:51.7]} 34...
Kd5 {[%clk 0:00:22.5]} 35. Bf6 {[%clk 0:00:44.6]} 35... Rg3+ {[%clk 0:00:21.6]}
36. Kd2 {[%clk 0:00:42.5]} 36... Kc4 {[%clk 0:00:20.8]} 37. Rd7 {[%clk
0:00:35.1]} 37... Rg2+ {[%clk 0:00:20.4]} 38. Ke3 {[%clk 0:00:36]} 38... Re2+
{[%clk 0:00:20.2]} 39. Kf3 {[%clk 0:00:35.5]} 39... Re1 {[%clk 0:00:20.6]} 40.
Rd6 {[%clk 0:00:33.1]} 40... Rf1+ {[%clk 0:00:17.3]} 41. Kg2 {[%clk 0:00:31.6]}
41... Rxf6 {[%clk 0:00:17]} 42. Rxf6 {[%clk 0:00:29.8]} 42... d2 {[%clk
0:00:17.9]} 43. Rd6 {[%clk 0:00:30]} 43... Nd4 {[%clk 0:00:17.2]} 44. c6 {[%clk
0:00:15.6]} 44... d1=Q {[%clk 0:00:16.5]} 45. c7 {[%clk 0:00:16.5]} 45... Qg4+
{[%clk 0:00:15.3]} 46. Kf1 {[%clk 0:00:16.2]} 46... Qf3+ {[%clk 0:00:15.1]} 47.
Kg1 {[%clk 0:00:14.6]} 47... Ne2+ {[%clk 0:00:14.7]} 48. Kh2 {[%clk 0:00:15.1]}
48... Qf2+ {[%clk 0:00:15.1]} 49. Kh3 {[%clk 0:00:01]} 49... Ng1# {[%clk
0:00:13.4]} 0-1